[Event "ROU-chT Men Superliga 2018"]
[Site "Sovata"]
[Date "2018.11.25"]
[Round "2"]
[White "Ardelean, George-Catalin"]
[Black "Grigore, George-Gabriel"]
[Result "1/2-1/2"]
[ECO "A48"]
[WhiteElo "2494"]
[BlackElo "2488"]
[Annotator "ChessBase"]
[PlyCount "41"]
[EventDate "2018.11.24"]
[EventType "team-tourn"]
[EventCountry "ROU"]
[SourceTitle "playchess.com"]
[Source "ChessBase"]
[SourceQuality "1"]
[TimeControl "40/5400+30:1800+30"]

1. d4 {[%emt 0:00:00]} Nf6 {[%emt 0:00:18]} 2. Nf3 {[%emt 0:00:00]} g6 {[%emt 0:00:54]} 3. Bg5 {[%emt 0:00:00]} Bg7 {[%emt 0:00:14]} 4. Nbd2 {[%emt 0:00:09]} d6 {[%emt 0:00:23]} 5. e4 {[%emt 0:00:45]} O-O {[%emt 0:00:16]} 6. c3 {[%emt 0:00:24]} c5 {[%emt 0:00:09]} 7. dxc5 {[%emt 0:01:35]} dxc5 {[%emt 0:00:06]} 8. Be2 {[%emt 0:01:22]} Nc6 {[%emt 0:00:11]} 9. O-O {[%emt 0:00:24]} Qc7 {[%emt 0:00:27]} 10. h3 {[%emt 0:00:25]} Nh5 {[%emt 0:04:17]} 11. Be3 {[%emt 0:08:42]} b6 {[%emt 0:00:25]} 12. Re1 {[%emt 0:00:05]} Bb7 {[%emt 0:14:49]} 13. a4 {[%emt 0:04:58]} Rab8 {[%emt 0:00:30]} 14. Qc2 {[%emt 0:00:30]} Na5 {[%emt 0:00:30]} 15. Nc4 {[%emt 0:00:30]} Nxc4 {[%emt 0:00:30]} 16. Bxc4 {[%emt 0:00:30]} Bc6 {[%emt 0:00:30]} 17. Bb5 {[%emt 0:00:30]} Nf6 {[%emt 0:00:30]} 18. Bg5 {[%emt 0:29:55]} h6 {[%emt 0:36:03]} 19. Bxf6 {[%emt 0:00:30]} exf6 {[%emt 0:00:30]} 20. Qe2 {[%emt 0:37:21]} Bb7 {[%emt 0:12:15]} 21. a5 {[%emt 0:01:42]} 1/2-1/2

[Event "ROU-chT Men Superliga 2018"]
[Site "Sovata"]
[Date "2018.11.25"]
[Round "2"]
[White "Morozov, Nichita"]
[Black "Vavric, Pavel"]
[Result "1/2-1/2"]
[ECO "E73"]
[WhiteElo "2439"]
[BlackElo "2351"]
[Annotator "NA RC"]
[PlyCount "56"]
[EventDate "2018.11.24"]
[EventType "team-tourn"]
[EventCountry "ROU"]
[SourceTitle "playchess.com"]
[Source "ChessBase"]
[SourceQuality "1"]
[TimeControl "40/5400+30:1800+30"]

1. d4 {[%emt 0:00:00]} Nf6 {[%emt 0:00:00]} 2. c4 {[%emt 0:00:00]} g6 {[%emt 0:00:11]} 3. Nc3 {[%emt 0:00:30]} Bg7 {[%emt 0:03:30]} 4. e4 {[%emt 0:00:05]} d6 {[%emt 0:00:04]} 5. Be2 {[%emt 0:00:57]} O-O {[%emt 0:00:23]} 6. Be3 {[%emt 0:00:06]} e5 {[%emt 0:04:16]} 7. d5 {[%emt 0:00:04]} Na6 {[%emt 0:01:18]} 8. Bf3 {[%emt 0:03:26]} c6 {[%emt 0:04:24]} 9. h3 {[%emt 0:01:13]} Bd7 {[%emt 0:06:01]} 10. a3 {[%emt 0:12:47]} Nc7 {[%emt 0:13:56]} 11. Nge2 {[%emt 0:03:56]} b5 {[%emt 0:03:18]} 12. dxc6 {[%emt 0:00:00]} Bxc6 {[%emt 0:00:05]} 13. cxb5 Nxb5 {[%emt 0:00:11]} 14. O-O {[%emt 0:02:01]} Qe7 {[%emt 0:09:23]} 15. Qc2 {[%emt 0:15:12]} Rac8 {[%emt 0:03:33]} 16. Rfd1 {[%emt 0:01:02]} Rfd8 {[%emt 0:04:38]} 17. Rac1 {[%emt 0:03:11]} Qb7 {[%emt 0:02:35]} 18. Qb1 {[%emt 0:08:07]} Nc7 {[%emt 0:02:10]} 19. b4 {[%emt 0:03:14]} a6 {[%emt 0:13:12]} 20. Rd2 {[%emt 0:05:35]} h6 {[%emt 0:01:12]} 21. Rcd1 {[%emt 0:01:11]} Bf8 {[%emt 0:00:14]} 22. Bc5 {[%emt 0:06:30]} Nce8 {[%emt 0:03:29]} 23. Be3 {[%emt 0:03:07]} Nc7 {[%emt 0:04:06]} 24. Bc5 {[%emt 0:02:30]} Nce8 {[%emt 0:00:30]} 25. Be3 {[%emt 0:00:07]} Nc7 {[%emt 0:08:23]} 26. Bc5 Nce8 27. Be3 Kg7 28. a4 Rb8 1/2-1/2

[Event "ROU-chT Men Superliga 2018"]
[Site "Sovata"]
[Date "2018.11.25"]
[Round "2"]
[White "Toma, Radu-Cristian"]
[Black "Baratosi, Daniel"]
[Result "1-0"]
[ECO "A04"]
[WhiteElo "2354"]
[BlackElo "2373"]
[Annotator "NA"]
[PlyCount "69"]
[EventDate "2018.11.24"]
[EventType "team-tourn"]
[EventCountry "ROU"]
[SourceTitle "playchess.com"]
[Source "ChessBase"]
[SourceQuality "1"]
[TimeControl "40/5400+30:1800+30"]

1. Nf3 {[%emt 0:00:00]} g6 {[%emt 0:02:02]} 2. g3 {[%emt 0:00:00]} Bg7 {[%emt 0:00:05]} 3. Bg2 {[%emt 0:00:02]} d6 {[%emt 0:00:15]} 4. d4 {[%emt 0:00:27]} f5 {[%emt 0:00:46]} 5. O-O {[%emt 0:00:09]} Nf6 {[%emt 0:00:04]} 6. c4 {[%emt 0:00:11]} O-O {[%emt 0:00:18]} 7. Nc3 {[%emt 0:00:05]} e6 {[%emt 0:04:15]} 8. b4 {[%emt 0:04:54]} e5 {[%emt 0:07:14]} 9. dxe5 {[%emt 0:11:09]} dxe5 {[%emt 0:00:36]} 10. e4 {[%emt 0:01:03]} Nc6 {[%emt 0:06:20]} 11. Qb3 {[%emt 0:16:09]} fxe4 {[%emt 0:05:40]} 12. c5+ {[%emt 0:05:39]} Kh8 {[%emt 0:01:59]} 13. Ng5 {[%emt 0:00:13]} Nd4 {[%emt 0:00:36]} 14. Qc4 {[%emt 0:01:03]} b5 {[%emt 0:12:26]} 15. cxb6 {[%emt 0:00:43]} axb6 {[%emt 0:00:45]} 16. Rd1 {[%emt 0:17:38]} Bg4 {[%emt 0:08:10]} 17. Be3 {[%emt 0:08:41]} Bxd1 {[%emt 0:06:51]} 18. Rxd1 {[%emt 0:00:02]} Ra3 {[%emt 0:04:38]} 19. Bxd4 {[%emt 0:04:46]} exd4 {[%emt 0:00:18]} 20. Rxd4 {[%emt 0:00:39]} Qe7 {[%emt 0:03:25]} 21. Nb5 {[%emt 0:02:57]} Rd3 {[%emt 0:07:02]} 22. Ne6 {[%emt 0:01:08]} c5 {[%emt 0:15:18]} 23. bxc5 {[%emt 0:01:19]} bxc5 {[%emt 0:00:04]} 24. Nxc5 {[%emt 0:05:52]} Rxd4 {[%emt 0:03:09]} 25. Nxd4 {[%emt 0:00:06]} e3 {[%emt 0:00:10]} 26. Nce6 {[%emt 0:03:09]} exf2+ {[%emt 0:00:28]} 27. Kxf2 {[%emt 0:01:56]} Ng4+ {[%emt 0:02:39]} 28. Kg1 {[%emt 0:00:05]} Qa3 {[%emt 0:03:29]} 29. Nb3 {[%emt 0:01:54]} Ne5 {[%emt 0:03:39]} 30. Qc7 {[%emt 0:01:10]} Rg8 {[%emt 0:01:38]} 31. Nxg7 {[%emt 0:02:31]} Qb2 {[%emt 0:00:06]} 32. Ne6 {[%emt 0:03:49]} Nd3 {[%emt 0:00:51]} 33. Qf7 {[%emt 0:01:22]} Rc8 {[%emt 0:00:38]} 34. Bf1 {[%emt 0:02:43]} Ne1 {[%emt 0:00:33]} 35. Nbd4 {[%emt 0:00:58]} 1-0

[Event "ROU-chT Men Superliga 2018"]
[Site "Sovata"]
[Date "2018.11.25"]
[Round "2"]
[White "Itkis, Boris"]
[Black "Patrascu, Catalin-Lucian"]
[Result "1/2-1/2"]
[ECO "E15"]
[WhiteElo "2325"]
[BlackElo "2268"]
[Annotator "NA"]
[PlyCount "50"]
[EventDate "2018.11.24"]
[EventType "team-tourn"]
[EventCountry "ROU"]
[SourceTitle "playchess.com"]
[Source "ChessBase"]
[SourceQuality "1"]
[TimeControl "40/5400+30:1800+30"]

1. Nf3 {[%emt 0:00:00]} e6 {[%emt 0:01:31]} 2. c4 {[%emt 0:00:07]} Nf6 {[%emt 0:02:14]} 3. d4 {[%emt 0:02:03]} b6 {[%emt 0:01:37]} 4. g3 {[%emt 0:01:49]} Ba6 {[%emt 0:00:23]} 5. Bg2 {[%emt 0:00:05]} Bxc4 {[%emt 0:01:03]} 6. Nc3 {[%emt 0:00:28]} c6 {[%emt 0:12:15]} 7. O-O {[%emt 0:08:19]} Be7 {[%emt 0:02:59]} 8. Ne5 {[%emt 0:04:30]} Ba6 {[%emt 0:00:18]} 9. Qa4 {[%emt 0:01:22]} O-O {[%emt 0:04:11]} 10. Rd1 {[%emt 0:00:11]} Bb7 {[%emt 0:08:47]} 11. e4 {[%emt 0:00:37]} d5 {[%emt 0:08:46]} 12. Bf4 {[%emt 0:05:55]} Nfd7 {[%emt 0:03:46]} 13. Nd3 {[%emt 0:04:34]} a5 {[%emt 0:05:13]} 14. Rac1 {[%emt 0:01:10]} Na6 {[%emt 0:03:11]} 15. a3 {[%emt 0:00:57]} Nb4 {[%emt 0:05:03]} 16. Qb3 {[%emt 0:04:25]} Nxd3 {[%emt 0:03:08]} 17. Rxd3 {[%emt 0:00:07]} Rc8 {[%emt 0:04:41]} 18. Rdd1 {[%emt 0:00:16]} Ba6 {[%emt 0:01:31]} 19. exd5 {[%emt 0:06:17]} cxd5 {[%emt 0:05:15]} 20. Nb5 {[%emt 0:00:34]} Nf6 {[%emt 0:14:15]} 21. Bc7 {[%emt 0:19:40]} Qd7 {[%emt 0:02:24]} 22. Bf1 {[%emt 0:00:06]} Bd8 {[%emt 0:06:34]} 23. Bf4 {[%emt 0:00:35]} Be7 {[%emt 0:01:28]} 24. Bc7 {[%emt 0:00:33]} Bd8 {[%emt 0:00:12]} 25. Bf4 {[%emt 0:00:07]} Be7 {[%emt 0:01:01]} 1/2-1/2

[Event "ROU-chT Men Superliga 2018"]
[Site "Sovata"]
[Date "2018.11.25"]
[Round "2"]
[White "Ileana, George"]
[Black "Andronescu, Madalin"]
[Result "1-0"]
[ECO "B76"]
[WhiteElo "2318"]
[BlackElo "2070"]
[Annotator "NA"]
[PlyCount "81"]
[EventDate "2018.11.24"]
[EventType "team-tourn"]
[EventCountry "ROU"]
[SourceTitle "playchess.com"]
[Source "ChessBase"]
[SourceQuality "1"]
[TimeControl "40/5400+30:1800+30"]

1. e4 {[%emt 0:00:00]} c5 {[%emt 0:00:00]} 2. Nf3 {[%emt 0:00:00]} d6 {[%emt 0:00:00]} 3. d4 {[%emt 0:00:00]} cxd4 {[%emt 0:00:00]} 4. Nxd4 {[%emt 0:00:00]} Nf6 {[%emt 0:00:00]} 5. Nc3 {[%emt 0:00:00]} g6 {[%emt 0:00:01]} 6. Be3 {[%emt 0:01:46]} Bg7 {[%emt 0:00:06]} 7. f3 {[%emt 0:00:05]} O-O {[%emt 0:00:05]} 8. Qd2 {[%emt 0:01:30]} Nc6 {[%emt 0:00:07]} 9. O-O-O {[%emt 0:06:38]} d5 {[%emt 0:00:05]} 10. exd5 {[%emt 0:06:50]} Nxd5 {[%emt 0:00:08]} 11. Nxc6 {[%emt 0:00:12]} bxc6 {[%emt 0:00:05]} 12. Bd4 {[%emt 0:00:07]} Bxd4 {[%emt 0:03:37]} 13. Qxd4 {[%emt 0:00:07]} Qb6 {[%emt 0:00:05]} 14. Na4 {[%emt 0:00:06]} Qc7 {[%emt 0:00:12]} 15. b3 {[%emt 0:05:24]} Rb8 {[%emt 0:06:50]} 16. Bc4 {[%emt 0:07:51]} Nb6 {[%emt 0:00:16]} 17. Nb2 {[%emt 0:01:15]} c5 {[%emt 0:03:38]} 18. Qc3 {[%emt 0:01:35]} Qf4+ {[%emt 0:01:00]} 19. Qd2 {[%emt 0:01:39]} Qxd2+ {[%emt 0:00:27]} 20. Kxd2 {[%emt 0:00:54]} Bb7 {[%emt 0:08:15]} 21. Rhe1 {[%emt 0:01:41]} e6 {[%emt 0:00:09]} 22. Re5 {[%emt 0:01:11]} Rfd8+ {[%emt 0:08:39]} 23. Kc3 {[%emt 0:01:49]} Rxd1 24. Nxd1 {[%emt 0:00:05]} Rd8 {[%emt 0:00:14]} 25. Nb2 {[%emt 0:01:09]} Nd7 {[%emt 0:02:19]} 26. Re1 {[%emt 0:00:37]} Kf8 {[%emt 0:01:45]} 27. Rd1 {[%emt 0:00:59]} Ke7 {[%emt 0:00:54]} 28. Bb5 {[%emt 0:00:24]} Ne5 {[%emt 0:01:01]} 29. Rxd8 {[%emt 0:00:54]} Kxd8 {[%emt 0:00:29]} 30. Nc4 {[%emt 0:00:03]} Nd7 {[%emt 0:02:06]} 31. Nd6 {[%emt 0:01:19]} Bd5 {[%emt 0:02:23]} 32. Bxd7 {[%emt 0:00:05]} Kxd7 {[%emt 0:00:06]} 33. Nxf7 {[%emt 0:00:04]} Ke7 {[%emt 0:00:25]} 34. Ng5 {[%emt 0:00:07]} Kf6 {[%emt 0:04:04]} 35. Ne4+ {[%emt 0:02:37]} Ke5 {[%emt 0:03:54]} 36. Nxc5 {[%emt 0:00:06]} Kf4 {[%emt 0:00:02]} 37. Kd4 {[%emt 0:00:09]} Kf5 {[%emt 0:01:44]} 38. c4 {[%emt 0:00:12]} Bc6 {[%emt 0:00:02]} 39. Nd3 {[%emt 0:00:07]} g5 {[%emt 0:00:17]} 40. Ne5 {[%emt 0:00:00]} Bb7 {[%emt 0:00:00]} 41. c5 {[%emt 0:00:11] Ke4+ Kxe4} 1-0

[Event "ROU-chT Men Superliga 2018"]
[Site "Sovata"]
[Date "2018.11.25"]
[Round "2"]
[White "Vasiesiu, Victor"]
[Black "Banzea, Alexandru-Bogdan"]
[Result "0-1"]
[ECO "B90"]
[WhiteElo "2270"]
[BlackElo "2313"]
[Annotator "NA"]
[PlyCount "106"]
[EventDate "2018.11.24"]
[EventType "team-tourn"]
[EventCountry "ROU"]
[SourceTitle "playchess.com"]
[Source "ChessBase"]
[SourceQuality "1"]
[TimeControl "40/5400+30:1800+30"]

1. e4 {[%emt 0:00:00]} c5 {[%emt 0:00:00]} 2. Nf3 {[%emt 0:00:00]} d6 {[%emt 0:00:04]} 3. d4 {[%emt 0:00:00]} cxd4 {[%emt 0:00:07]} 4. Nxd4 {[%emt 0:00:07]} Nf6 {[%emt 0:00:06]} 5. Nc3 {[%emt 0:00:07]} a6 {[%emt 0:00:04]} 6. f3 {[%emt 0:02:19]} e5 {[%emt 0:00:23]} 7. Nb3 {[%emt 0:00:08]} Be6 {[%emt 0:00:11]} 8. Be3 {[%emt 0:00:07]} Be7 {[%emt 0:00:10]} 9. Qd2 {[%emt 0:00:09]} h5 {[%emt 0:00:25]} 10. Nd5 {[%emt 0:00:40]} Nxd5 {[%emt 0:00:36]} 11. exd5 {[%emt 0:00:06]} Bf5 {[%emt 0:00:05] B90: Sicilian Najdorf: Unusual White 6th moves, 6 Be3 Ng4 and 6 Be3 e5} 12. Bd3 {[%emt 0:01:42]} (12. Be2 Nd7 13. O-O Bg6 14. a4 a5 15. Bd3 Bxd3 16. Qxd3 O-O 17. Nd2 f5 18. Qb5 Qc7 19. c3 {0-1 (45) Vidit,S (2718)-Andriasian,Z (2591) chess.com INT 2018}) 12... Bxd3 {[%emt 0:00:37]} 13. Qxd3 {[%emt 0:00:07]} Bg5 {[%emt 0:02:47]} 14. O-O {[%emt 0:07:01]} Bxe3+ {[%emt 0:00:44]} 15. Qxe3 {[%emt 0:00:05]} Nd7 {[%emt 0:05:12]} 16. c4 {[%emt 0:03:02]} O-O {[%emt 0:03:29]} 17. Rac1 $146 {[%emt 0:02:31]} ({Predecessor:} 17. Nd2 Rc8 18. Rac1 a5 19. Ne4 {0-1 (41) Matta,V (2199)-Ravichandran,S (2395) Kolkata 2013}) 17... Rc8 {[%emt 0:04:04]} 18. f4 {[%emt 0:12:37]} exf4 {[%emt 0:04:02]} 19. Rxf4 {[%emt 0:00:30]} Ne5 {[%emt 0:10:45]} 20. Qe2 {[%emt 0:03:49]} Qg5 {[%emt 0:03:05]} 21. Rcf1 {[%emt 0:01:38]} g6 {[%emt 0:03:15]} 22. Nd2 {[%emt 0:06:15]} Qd8 {[%emt 0:14:31]} 23. Nf3 {[%emt 0:11:05]} Qb6+ {[%emt 0:07:13]} 24. Kh1 {[%emt 0:00:31]} Rce8 {[%emt 0:03:00]} 25. Ng5 {[%emt 0:11:00]} Qd8 {[%emt 0:02:56]} 26. h4 {[%emt 0:03:49]} Ng4 {[%emt 0:06:57]} 27. Re4 {[%emt 0:02:56]} Rxe4 {[%emt 0:12:30]} 28. Qxe4 {[%emt 0:00:06]} Qd7 {[%emt 0:00:22]} 29. Qf4 {[%emt 0:06:08]} Qe7 {[%emt 0:00:46]} 30. b4 {[%emt 0:04:11]} Qe3 {[%emt 0:04:33]} 31. Ne4 {[%emt 0:03:59]} Qxf4 {[%emt 0:02:52]} 32. Rxf4 {[%emt 0:00:04]} Rd8 {[%emt 0:00:10]} 33. Kg1 {[%emt 0:03:50]} Kg7 {[%emt 0:02:54]} 34. Nd2 {[%emt 0:04:26]} Kf8 {[%emt 0:02:51]} 35. Re4 {[%emt 0:02:26]} Re8 {[%emt 0:01:21]} 36. c5 {[%emt 0:02:18]} dxc5 {[%emt 0:01:33]} 37. bxc5 {[%emt 0:00:21]} Rxe4 {[%emt 0:00:20]} 38. Nxe4 {[%emt 0:00:07]} Ke7 {[%emt 0:00:38]} 39. Nd6 {[%emt 0:05:30]} Ne3 {[%emt 0:01:25]} 40. Nxb7 {[%emt 0:00:00]} Nxd5 {[%emt 0:00:00]} 41. Kf2 {[%emt 0:04:59]} Kd7 {[%emt 0:04:50]} 42. Na5 {[%emt 0:07:08]} Nc3 {[%emt 0:08:16]} 43. c6+ {[%emt 0:05:40]} Kc7 {[%emt 0:03:29]} 44. a3 {[%emt 0:01:54]} Nb5 {[%emt 0:08:09]} 45. Ke3 {[%emt 0:00:38]} Nxa3 {[%emt 0:01:43]} 46. Ke4 {[%emt 0:00:14]} Nb5 {[%emt 0:00:36]} 47. Ke5 {[%emt 0:01:12]} Kb6 {[%emt 0:01:34]} 48. Nb7 {[%emt 0:00:09]} Kxc6 {[%emt 0:00:26]} 49. Nd8+ {[%emt 0:00:15]} Kc5 {[%emt 0:00:07]} 50. Nxf7 {[%emt 0:00:13]} a5 {[%emt 0:00:14]} 51. Kf4 {[%emt 0:05:43]} a4 {[%emt 0:01:10]} 52. Ne5 {[%emt 0:00:04]} Kd4 {[%emt 0:00:46]} 53. Nc6+ $19 {[%emt 0:01:31]} Kc3 {[%emt 0:00:23]} 0-1

[Event "ROU-chT Men Superliga 2018"]
[Site "Sovata"]
[Date "2018.11.25"]
[Round "2"]
[White "Szabo, Attila"]
[Black "Vasiesiu, Dan"]
[Result "1/2-1/2"]
[ECO "E63"]
[WhiteElo "2263"]
[BlackElo "2394"]
[Annotator "NA"]
[PlyCount "54"]
[EventDate "2018.11.24"]
[EventType "team-tourn"]
[EventCountry "ROU"]
[SourceTitle "playchess.com"]
[Source "ChessBase"]
[SourceQuality "1"]
[TimeControl "40/5400+30:1800+30"]

1. d4 {[%emt 0:00:00]} Nf6 {[%emt 0:00:00]} 2. g3 {[%emt 0:00:17]} g6 {[%emt 0:00:11]} 3. Nf3 {[%emt 0:01:10]} Bg7 {[%emt 0:00:43]} 4. Bg2 {[%emt 0:00:09]} O-O {[%emt 0:01:55]} 5. O-O {[%emt 0:01:47]} d6 {[%emt 0:02:35]} 6. c4 {[%emt 0:01:14]} Nc6 {[%emt 0:00:38]} 7. Nc3 {[%emt 0:03:37]} a6 {[%emt 0:02:09]} 8. e4 {[%emt 0:04:12]} Bg4 {[%emt 0:01:03]} 9. Be3 {[%emt 0:03:27]} Nd7 {[%emt 0:08:02]} 10. h3 {[%emt 0:07:48]} Bxf3 {[%emt 0:00:10]} 11. Bxf3 {[%emt 0:00:07]} e5 {[%emt 0:00:50]} 12. d5 {[%emt 0:00:11]} Nd4 {[%emt 0:00:22]} 13. Bg2 {[%emt 0:00:08]} c5 {[%emt 0:01:01]} 14. dxc6 {[%emt 0:01:02]} bxc6 {[%emt 0:00:16]} 15. b4 {[%emt 0:01:29]} Qe7 {[%emt 0:20:48]} 16. Qd3 {[%emt 0:08:11]} Rfb8 {[%emt 0:03:30]} 17. Rab1 {[%emt 0:03:55]} Qe6 {[%emt 0:04:28]} 18. Rfc1 {[%emt 0:05:38]} h5 {[%emt 0:02:34]} 19. a3 {[%emt 0:07:53]} h4 {[%emt 0:05:27]} 20. g4 {[%emt 0:15:06]} Qf6 {[%emt 0:16:40]} 21. Ne2 {[%emt 0:04:09]} Nf8 {[%emt 0:07:11]} 22. Nxd4 {[%emt 0:03:53]} exd4 {[%emt 0:00:09]} 23. g5 {[%emt 0:00:12]} Qe7 {[%emt 0:00:33]} 24. Bxd4 {[%emt 0:00:08]} Bxd4 {[%emt 0:00:37]} 25. Qxd4 {[%emt 0:00:36]} Qxg5 {[%emt 0:01:15]} 26. Qxd6 {[%emt 0:05:01]} Ne6 {[%emt 0:00:10]} 27. Qd1 {[%emt 0:02:03]} Rd8 {[%emt 0:01:58]} 1/2-1/2

[Event "ROU-chT Men Superliga 2018"]
[Site "Sovata"]
[Date "2018.11.25"]
[Round "2"]
[White "Popescu, Daniel-Vasilica"]
[Black "Pavlov, Mircea-Sergiu-Aurel"]
[Result "0-1"]
[ECO "B24"]
[WhiteElo "2131"]
[BlackElo "2330"]
[Annotator "ChessBase"]
[PlyCount "122"]
[EventDate "2018.11.24"]
[EventType "team-tourn"]
[EventCountry "ROU"]
[SourceTitle "playchess.com"]
[Source "ChessBase"]
[SourceQuality "1"]
[TimeControl "40/5400+30:1800+30"]

1. e4 {[%emt 0:00:00]} c5 {[%emt 0:00:00]} 2. Nc3 {[%emt 0:00:00]} Nc6 {[%emt 0:00:03]} 3. Nf3 {[%emt 0:00:22]} g6 {[%emt 0:00:56]} 4. Bb5 {[%emt 0:01:50]} Bg7 {[%emt 0:02:22]} 5. d3 {[%emt 0:00:46]} Nd4 {[%emt 0:03:06]} 6. Bc4 {[%emt 0:03:28]} d6 {[%emt 0:07:56]} 7. Be3 {[%emt 0:05:44]} e6 {[%emt 0:00:32]} 8. Rb1 {[%emt 0:11:44]} Ne7 {[%emt 0:02:29]} 9. Ne2 {[%emt 0:04:10]} Nec6 {[%emt 0:04:21]} 10. Nf4 {[%emt 0:09:47]} O-O {[%emt 0:05:59]} 11. h4 {[%emt 0:04:30]} b5 {[%emt 0:16:52]} 12. Bb3 {[%emt 0:05:37]} e5 {[%emt 0:03:02]} 13. Nd5 {[%emt 0:06:53]} Bg4 {[%emt 0:02:53]} 14. c3 {[%emt 0:05:17]} Nxb3 {[%emt 0:03:30]} 15. Qxb3 {[%emt 0:00:19]} Rb8 {[%emt 0:00:29]} 16. Bg5 {[%emt 0:08:40]} Qd7 {[%emt 0:02:17]} 17. Nh2 {[%emt 0:00:30]} Be6 {[%emt 0:00:46]} 18. h5 {[%emt 0:01:40]} f6 {[%emt 0:11:14]} 19. Be3 {[%emt 0:02:26]} Ne7 {[%emt 0:06:16]} 20. hxg6 hxg6 {[%emt 0:00:10]} 21. Nxe7+ {[%emt 0:09:35]} Qxe7 {[%emt 0:00:07]} 22. Qd1 {[%emt 0:04:59]} Qd7 {[%emt 0:12:46]} 23. Nf3 {[%emt 0:00:39]} Kf7 {[%emt 0:01:47]} 24. Ke2 {[%emt 0:00:38]} Rh8 {[%emt 0:00:42]} 25. Qd2 {[%emt 0:00:09]} Bg4 {[%emt 0:03:01]} 26. Rbg1 {[%emt 0:01:55]} Rh5 {[%emt 0:02:55]} 27. Rxh5 {[%emt 0:01:39]} Bxh5 {[%emt 0:00:11]} 28. Kf1 {[%emt 0:04:52]} b4 {[%emt 0:02:05]} 29. Ne1 {[%emt 0:01:20]} bxc3 {[%emt 0:00:54]} 30. Qxc3 {[%emt 0:00:50]} Bg4 {[%emt 0:00:21]} 31. Rh1 {[%emt 0:01:36]} Qa4 {[%emt 0:01:35]} 32. a3 {[%emt 0:01:57]} Qb3 {[%emt 0:01:03]} 33. Qxb3+ {[%emt 0:01:22]} Rxb3 {[%emt 0:00:01]} 34. Bc1 {[%emt 0:00:07]} Be6 {[%emt 0:00:29]} 35. Ke2 {[%emt 0:00:56]} d5 36. f3 {[%emt 0:00:41]} d4 {[%emt 0:00:41]} 37. Kd2 {[%emt 0:00:16]} c4 {[%emt 0:00:11]} 38. Kc2 {[%emt 0:00:34]} c3 {[%emt 0:00:57]} 39. g3 {[%emt 0:00:39]} f5 {[%emt 0:00:06]} 40. bxc3 {[%emt 0:00:00]} Rxc3+ {[%emt 0:00:00]} 41. Kd2 {[%emt 0:03:52]} a5 {[%emt 0:00:51]} 42. Bb2 {[%emt 0:01:25]} Rc8 {[%emt 0:02:31]} 43. f4 {[%emt 0:00:49]} Bb3 {[%emt 0:00:39]} 44. Ke2 {[%emt 0:03:52]} a4 {[%emt 0:10:58]} 45. Rh2 {[%emt 0:01:05]} Rc5 {[%emt 0:01:22]} 46. Rh4 {[%emt 0:06:13]} fxe4 {[%emt 0:04:35]} 47. fxe5 {[%emt 0:06:33]} exd3+ {[%emt 0:01:48]} 48. Kxd3 {[%emt 0:00:33]} Bxe5 {[%emt 0:01:45]} 49. Bxd4 {[%emt 0:01:38]} Rd5 {[%emt 0:00:39]} 50. Nf3 {[%emt 0:01:18]} Bxg3 {[%emt 0:01:38]} 51. Rg4 {[%emt 0:01:03]} Bd6 {[%emt 0:00:37]} 52. Ng5+ {[%emt 0:00:22]} Ke7 {[%emt 0:01:01]} 53. Ne4 {[%emt 0:03:05]} Bxa3 {[%emt 0:00:51]} 54. Rxg6 {[%emt 0:01:07]} Bb2 {[%emt 0:01:25]} 55. Nc3 {[%emt 0:00:07]} Rh5 {[%emt 0:01:47]} 56. Rg7+ {[%emt 0:00:09]} Ke6 {[%emt 0:00:25]} 57. Rg6+ {[%emt 0:00:59]} Kf7 {[%emt 0:01:07]} 58. Rg7+ {[%emt 0:00:14]} Ke6 {[%emt 0:00:28]} 59. Ne2 {[%emt 0:01:41]} Rh3+ {[%emt 0:01:06]} 60. Be3 {[%emt 0:00:14]} Bxg7 {[%emt 0:00:06]} 61. Nf4+ {[%emt 0:00:20]} Ke5 {Kd4+} 0-1